[Event "DMP Ekstraliga 2020"]
[Site "Krakow"]
[Date "2020.08.29"]
[Round "4.24"]
[White "Kiolbasa, Oliwia"]
[Black "Zawadzka, Jolanta"]
[Result "0-1"]
[ECO "C63"]
[WhiteElo "2160"]
[BlackElo "2419"]
[Annotator "ChessBase"]
[PlyCount "80"]
[EventDate "2020.08.26"]
[EventType "team-tourn"]
[EventCountry "POL"]
[SourceTitle "playchess.com"]
[Source "ChessBase"]
[SourceQuality "1"]
[WhiteTeam "Miedz Legnica"]
[BlackTeam "Polonia Wroclaw"]
[TimeControl "30/5400+30:1800+30"]

1. e4 {[%emt 0:00:00]} e5 {[%emt 0:00:00]} 2. Nf3 {[%emt 0:00:00]} Nc6 {[%emt 0:00:00]} 3. Bb5 {[%emt 0:00:00]} f5 {[%emt 0:00:00]} 4. d3 {[%emt 0:00:26]} fxe4 {[%emt 0:00:09]} 5. dxe4 {[%emt 0:00:08]} Nf6 {[%emt 0:00:06]} 6. O-O {[%emt 0:00:52]} d6 {[%emt 0:00:11]} 7. Nc3 {[%emt 0:03:26]} Be7 {[%emt 0:00:46]} 8. a4 {[%emt 0:05:59]} Bg4 {[%emt 0:09:52]} 9. Qd3 {[%emt 0:07:07]} Qd7 {[%emt 0:02:32]} 10. Nd5 {[%emt 0:02:29]} O-O {[%emt 0:06:36]} 11. h3 {[%emt 0:15:21]} Bxf3 {[%emt 0:24:10]} 12. Qxf3 {[%emt 0:08:30]} a6 {[%emt 0:00:26]} 13. Nxe7+ {[%emt 0:03:12]} Qxe7 {[%emt 0:00:06]} 14. Bc4+ {[%emt 0:00:06]} Kh8 {[%emt 0:00:29]} 15. c3 {[%emt 0:05:54]} Nd8 {[%emt 0:04:38]} 16. Qe2 {[%emt 0:03:22]} Ne6 {[%emt 0:00:35]} 17. g3 {[%emt 0:00:26]} c6 {[%emt 0:03:58]} 18. Bd3 {[%emt 0:07:14]} Qf7 {[%emt 0:04:48]} 19. a5 {[%emt 0:07:55]} Qg6 {[%emt 0:03:17]} 20. b4 {[%emt 0:01:24]} Rf7 {[%emt 0:04:52]} 21. Kh2 {[%emt 0:01:37]} Raf8 {[%emt 0:02:36]} 22. Ra2 {[%emt 0:09:35]} Nh5 {[%emt 0:01:32]} 23. Rg1 {[%emt 0:12:05]} Ng5 {[%emt 0:07:23]} 24. Bxg5 {[%emt 0:00:26]} Qxg5 {[%emt 0:00:03]} 25. Rg2 {[%emt 0:01:00]} Rf3 {[%emt 0:02:56]} 26. Rd2 {[%emt 0:00:03]} Qh6 {[%emt 0:02:15]} 27. c4 {[%emt 0:01:50]} g5 {[%emt 0:01:39]} 28. Kg1 {[%emt 0:01:04]} Ng7 {[%emt 0:00:26]} 29. Rh2 {[%emt 0:00:25]} Ne6 {[%emt 0:00:20]} 30. Qd1 {[%emt 0:00:45]} Qf6 {[%emt 0:01:54]} 31. Qe1 {[%emt 0:31:30]} Nd4 {[%emt 0:30:28]} 32. Be2 {[%emt 0:00:22]} Rc3 {[%emt 0:02:46]} 33. Qd1 {[%emt 0:01:15]} c5 {[%emt 0:01:42]} 34. bxc5 {[%emt 0:00:12]} dxc5 {[%emt 0:00:04]} 35. Rg2 {[%emt 0:00:14]} Qc6 {[%emt 0:01:37]} 36. Bd3 {[%emt 0:00:59]} Nf3+ {[%emt 0:02:02]} 37. Kf1 {[%emt 0:00:04]} Qd7 {[%emt 0:00:40]} 38. Ke2 {[%emt 0:00:14]} Nxd2 {[%emt 0:00:56]} 39. Qxd2 {[%emt 0:00:06]} Qd4 {[%emt 0:00:09]} 40. g4 {[%emt 0:00:00]} Rf3 {[%emt 0:00:00]} 0-1

[Event "DMP Ekstraliga 2020"]
[Site "Krakow"]
[Date "2020.08.29"]
[Round "4.25"]
[White "Huschenbeth, Niclas"]
[Black "Matuszewski, Michal"]
[Result "1-0"]
[ECO "B90"]
[WhiteElo "2605"]
[BlackElo "2508"]
[Annotator "ChessBase"]
[PlyCount "97"]
[EventDate "2020.08.26"]
[EventType "team-tourn"]
[EventCountry "POL"]
[SourceTitle "playchess.com"]
[Source "ChessBase"]
[SourceQuality "1"]
[WhiteTeam "Silesia Raciborz"]
[BlackTeam "Dwie Wieze Krakow"]
[TimeControl "30/5400+30:1800+30"]

1. e4 {[%emt 0:00:00]} c5 {[%emt 0:00:00]} 2. Nf3 {[%emt 0:00:00]} d6 {[%emt 0:00:00]} 3. d4 {[%emt 0:00:00]} cxd4 {[%emt 0:00:00]} 4. Nxd4 {[%emt 0:00:00]} Nf6 {[%emt 0:00:00]} 5. Nc3 {[%emt 0:00:00]} a6 {[%emt 0:00:00]} 6. h3 {[%emt 0:05:57]} e5 {[%emt 0:05:17]} 7. Nb3 {[%emt 0:01:07]} h5 {[%emt 0:02:03]} 8. Be2 {[%emt 0:07:18]} Be7 {[%emt 0:05:29]} 9. Bg5 {[%emt 0:02:46]} Nbd7 {[%emt 0:02:29]} 10. a4 {[%emt 0:11:22]} b6 {[%emt 0:09:00]} 11. Nd2 {[%emt 0:04:59]} Bb7 {[%emt 0:03:20]} 12. Nc4 {[%emt 0:01:40]} Qc7 {[%emt 0:00:20]} 13. Ne3 {[%emt 0:01:34]} g6 {[%emt 0:05:19]} 14. Bc4 {[%emt 0:04:21]} Qc5 {[%emt 0:11:45]} 15. Bxf6 {[%emt 0:00:44]} Nxf6 {[%emt 0:00:15]} 16. Bd5 {[%emt 0:00:11]} Nxd5 {[%emt 0:03:49]} 17. Nexd5 {[%emt 0:00:59]} Bd8 {[%emt 0:03:11]} 18. Qd3 {[%emt 0:01:22]} O-O {[%emt 0:05:43]} 19. O-O {[%emt 0:00:48]} Rc8 {[%emt 0:01:26]} 20. Rad1 {[%emt 0:01:10]} Kg7 {[%emt 0:03:01]} 21. Ne3 {[%emt 0:27:17]} Bg5 {[%emt 0:06:03]} 22. Qxd6 {[%emt 0:03:37]} Bxe3 {[%emt 0:00:26]} 23. fxe3 {[%emt 0:00:07]} Qxe3+ {[%emt 0:02:50]} 24. Kh2 {[%emt 0:09:42]} f6 {[%emt 0:01:51]} 25. Qe6 {[%emt 0:05:53]} Rc7 {[%emt 0:01:58]} 26. Rf3 {[%emt 0:03:16]} Qc5 {[%emt 0:04:12]} 27. Rd6 {[%emt 0:00:06]} Bc8 {[%emt 0:03:51]} 28. Qd5 {[%emt 0:00:01]} Bb7 {[%emt 0:01:35]} 29. Qe6 {[%emt 0:00:05]} Bc8 {[%emt 0:00:03]} 30. Qd5 {[%emt 0:00:04]} Bb7 {[%emt 0:00:04]} 31. Qxc5 {[%emt 0:32:30]} bxc5 {[%emt 0:30:07]} 32. Rfd3 {[%emt 0:01:16]} Rff7 {[%emt 0:02:28]} 33. Rb6 {[%emt 0:01:39]} Rfd7 {[%emt 0:03:21]} 34. Rxd7+ {[%emt 0:00:38]} Rxd7 {[%emt 0:00:02]} 35. Kg3 {[%emt 0:00:10]} Kf7 {[%emt 0:01:04]} 36. h4 {[%emt 0:01:29]} f5 {[%emt 0:02:42]} 37. Kf3 {[%emt 0:00:12]} c4 {[%emt 0:09:14]} 38. Ke3 {[%emt 0:01:10]} fxe4 {[%emt 0:03:12]} 39. a5 {[%emt 0:03:01]} Kg7 {[%emt 0:01:14]} 40. Re6 {[%emt 0:00:00]} Bc8 {[%emt 0:00:00]} 41. Rc6 {[%emt 0:00:00]} Bb7 {[%emt 0:00:00]} 42. Rxc4 {[%emt 0:00:00]} Kf6 {[%emt 0:00:00]} 43. Rb4 {[%emt 0:00:00]} Rc7 {[%emt 0:00:00]} 44. Rb6+ {[%emt 0:00:00]} Kf5 {[%emt 0:00:00]} 45. Nd1 {[%emt 0:00:00]} Bc8 {[%emt 0:00:00]} 46. c3 {[%emt 0:00:00]} Rc5 {[%emt 0:00:00]} 47. Kf2 {[%emt 0:00:00]} Kg4 {[%emt 0:00:00]} 48. Rxg6+ {[%emt 0:00:00]} Kxh4 {[%emt 0:00:00]} 49. Kg1 {[%emt 0:00:00]} 1-0

[Event "DMP Ekstraliga 2020"]
[Site "Krakow"]
[Date "2020.08.29"]
[Round "4.27"]
[White "Markowski, Tomasz"]
[Black "Nguyen, Piotr"]
[Result "1-0"]
[ECO "A48"]
[WhiteElo "2548"]
[BlackElo "2422"]
[Annotator "ChessBase"]
[PlyCount "95"]
[EventDate "2020.08.26"]
[EventType "team-tourn"]
[EventCountry "POL"]
[SourceTitle "playchess.com"]
[Source "ChessBase"]
[SourceQuality "1"]
[WhiteTeam "Silesia Raciborz"]
[BlackTeam "Dwie Wieze Krakow"]
[TimeControl "30/5400+30:1800+30"]

1. d4 {[%emt 0:00:00]} Nf6 {[%emt 0:00:01]} 2. Nf3 {[%emt 0:00:00]} g6 {[%emt 0:00:21]} 3. e3 {[%emt 0:00:10]} Bg7 {[%emt 0:00:50]} 4. Be2 {[%emt 0:00:04]} c5 {[%emt 0:02:28]} 5. O-O {[%emt 0:00:39]} O-O 6. dxc5 Na6 {[%emt 0:03:05]} 7. Bxa6 {[%emt 0:04:33]} bxa6 {[%emt 0:00:05]} 8. b3 {[%emt 0:00:29]} Qc7 {[%emt 0:05:13]} 9. Bb2 {[%emt 0:00:17]} Bb7 {[%emt 0:00:44]} 10. Nbd2 {[%emt 0:03:37]} Qxc5 {[%emt 0:00:54]} 11. c4 {[%emt 0:01:03]} d6 {[%emt 0:06:09]} 12. Qe2 {[%emt 0:01:23]} a5 {[%emt 0:01:32]} 13. Rfc1 {[%emt 0:02:47]} e5 {[%emt 0:06:35]} 14. a4 {[%emt 0:01:50]} Nd7 {[%emt 0:05:28]} 15. Ng5 {[%emt 0:08:36]} Qc6 {[%emt 0:04:08]} 16. f3 {[%emt 0:02:20]} Bh6 {[%emt 0:03:09]} 17. Nge4 {[%emt 0:01:55]} f5 {[%emt 0:00:53]} 18. Nf2 {[%emt 0:02:19]} Bg5 {[%emt 0:15:19]} 19. Ba3 {[%emt 0:02:15]} Bd8 {[%emt 0:02:20]} 20. Nd3 {[%emt 0:03:33]} Rb8 {[%emt 0:06:49]} 21. b4 {[%emt 0:12:10]} axb4 {[%emt 0:05:20]} 22. Nxb4 {[%emt 0:00:14]} Qxa4 {[%emt 0:01:28]} 23. Qd3 {[%emt 0:00:21]} a5 {[%emt 0:02:45]} 24. Nc2 {[%emt 0:02:39]} e4 {[%emt 0:02:53]} 25. fxe4 {[%emt 0:02:02]} fxe4 {[%emt 0:02:56]} 26. Qxd6 {[%emt 0:00:32]} Rf6 {[%emt 0:01:31]} 27. Qg3 {[%emt 0:02:02]} Qc6 {[%emt 0:00:33]} 28. Nd4 {[%emt 0:03:03]} Qc7 {[%emt 0:00:12]} 29. Qxc7 {[%emt 0:14:58]} Bxc7 {[%emt 0:00:03]} 30. Nb5 {[%emt 0:00:12]} Be5 {[%emt 0:02:19]} 31. Rab1 {[%emt 0:30:01]} Ba8 {[%emt 0:36:27]} 32. Nb3 {[%emt 0:02:31]} a4 {[%emt 0:03:04]} 33. N3d4 {[%emt 0:00:02]} Nb6 {[%emt 0:02:32]} 34. Be7 {[%emt 0:06:27]} Rf7 {[%emt 0:00:20]} 35. Bd6 {[%emt 0:00:12]} Bxd6 {[%emt 0:01:44]} 36. Nxd6 {[%emt 0:00:02]} Rf6 {[%emt 0:02:21]} 37. c5 {[%emt 0:01:16]} Nd7 {[%emt 0:01:52]} 38. Rxb8+ {[%emt 0:00:56]} Nxb8 {[%emt 0:00:01]} 39. Ra1 {[%emt 0:00:20]} Nd7 {[%emt 0:00:44]} 40. Rxa4 {[%emt 0:00:00]} Bd5 {[%emt 0:00:00]} 41. Ra5 {[%emt 0:00:00]} Kf8 {[%emt 0:00:00]} 42. h3 {[%emt 0:00:00]} h5 {[%emt 0:00:00]} 43. N6b5 {[%emt 0:00:00]} Ke7 {[%emt 0:00:00]} 44. Nc3 {[%emt 0:00:00]} Bc6 {[%emt 0:00:00]} 45. Na2 {[%emt 0:00:00]} Ne5 {[%emt 0:00:00]} 46. Nb4 {[%emt 0:00:00]} Kd7 {[%emt 0:00:00]} 47. Ra7+ {[%emt 0:00:00]} Kc8 {[%emt 0:00:00]} 48. Re7 {[%emt 0:00:00]} 1-0

[Event "DMP Ekstraliga 2020"]
[Site "Krakow"]
[Date "2020.08.29"]
[Round "4.28"]
[White "Zwardon, Vojtech"]
[Black "Krzyzanowski, Marcin"]
[Result "1/2-1/2"]
[ECO "A15"]
[WhiteElo "2481"]
[BlackElo "2518"]
[Annotator "ChessBase"]
[PlyCount "59"]
[EventDate "2020.08.26"]
[EventType "team-tourn"]
[EventCountry "POL"]
[SourceTitle "playchess.com"]
[Source "ChessBase"]
[SourceQuality "1"]
[WhiteTeam "Dwie Wieze Krakow"]
[BlackTeam "Silesia Raciborz"]
[TimeControl "30/5400+30:1800+30"]

1. c4 {[%emt 0:00:00]} Nf6 {[%emt 0:00:00]} 2. g3 {[%emt 0:00:00]} c6 {[%emt 0:00:00]} 3. Nf3 {[%emt 0:00:17]} d5 {[%emt 0:00:00]} 4. b3 {[%emt 0:00:31]} g6 {[%emt 0:01:37]} 5. Bb2 {[%emt 0:00:06]} Bg7 {[%emt 0:00:02]} 6. Bg2 {[%emt 0:00:21]} O-O {[%emt 0:00:20]} 7. O-O {[%emt 0:00:12]} a5 {[%emt 0:00:29]} 8. Nc3 {[%emt 0:01:55]} Ne4 {[%emt 0:05:45]} 9. d4 {[%emt 0:09:24]} Nxc3 {[%emt 0:05:00]} 10. Bxc3 {[%emt 0:00:13]} Nd7 {[%emt 0:01:33]} 11. cxd5 {[%emt 0:00:55]} cxd5 {[%emt 0:00:04]} 12. Rc1 {[%emt 0:00:48]} Qb6 {[%emt 0:04:43]} 13. Ne5 {[%emt 0:05:33]} e6 {[%emt 0:01:31]} 14. a4 {[%emt 0:02:10]} Rd8 {[%emt 0:01:54]} 15. e3 {[%emt 0:02:31]} Qd6 {[%emt 0:03:22]} 16. f4 {[%emt 0:10:10]} f6 {[%emt 0:03:34]} 17. Nd3 {[%emt 0:01:50]} b6 {[%emt 0:04:20]} 18. Rf2 {[%emt 0:00:17]} Ba6 {[%emt 0:00:58]} 19. Bb2 {[%emt 0:00:17]} Rac8 {[%emt 0:01:06]} 20. Rfc2 {[%emt 0:01:21]} Rxc2 {[%emt 0:02:37]} 21. Rxc2 {[%emt 0:00:05]} Rc8 {[%emt 0:00:24]} 22. Rxc8+ {[%emt 0:00:04]} Bxc8 {[%emt 0:00:04]} 23. Qc1 {[%emt 0:00:13]} Bb7 {[%emt 0:00:31]} 24. Bh3 {[%emt 0:00:41]} Kf7 {[%emt 0:00:36]} 25. Ba3 {[%emt 0:04:46]} Qc6 {[%emt 0:00:28]} 26. Qxc6 {[%emt 0:00:04]} Bxc6 {[%emt 0:00:04]} 27. Bd6 {[%emt 0:00:03]} Bf8 {[%emt 0:02:17]} 28. Bc7 {[%emt 0:00:07]} Ba3 {[%emt 0:02:21]} 29. Bf1 {[%emt 0:00:15]} Ke7 {[%emt 0:00:53]} 30. Nf2 {[%emt 0:02:01]} 1/2-1/2

[Event "DMP Ekstraliga 2020"]
[Site "Krakow"]
[Date "2020.08.29"]
[Round "4.29"]
[White "Jakubowski, Krzysztof"]
[Black "Mikrut, Dariusz"]
[Result "1-0"]
[ECO "A05"]
[WhiteElo "2481"]
[BlackElo "2390"]
[Annotator "ChessBase"]
[PlyCount "87"]
[EventDate "2020.08.26"]
[EventType "team-tourn"]
[EventCountry "POL"]
[SourceTitle "playchess.com"]
[Source "ChessBase"]
[SourceQuality "1"]
[WhiteTeam "Silesia Raciborz"]
[BlackTeam "Dwie Wieze Krakow"]
[TimeControl "30/5400+30:1800+30"]

1. Nf3 {[%emt 0:00:00]} Nf6 {[%emt 0:00:14]} 2. g3 {[%emt 0:00:00]} g6 {[%emt 0:01:22]} 3. b3 {[%emt 0:00:18]} Bg7 {[%emt 0:00:31]} 4. Bb2 {[%emt 0:00:07]} a5 {[%emt 0:01:33]} 5. c4 {[%emt 0:03:52]} O-O {[%emt 0:01:23]} 6. Nc3 {[%emt 0:00:27]} c6 {[%emt 0:01:35]} 7. Bg2 {[%emt 0:11:09]} d5 {[%emt 0:01:31]} 8. Rc1 {[%emt 0:01:33]} Ne4 {[%emt 0:10:12]} 9. Na4 {[%emt 0:07:39]} dxc4 {[%emt 0:07:20]} 10. Bxg7 {[%emt 0:04:00]} Kxg7 {[%emt 0:00:07]} 11. bxc4 {[%emt 0:01:19]} Na6 {[%emt 0:03:56]} 12. c5 {[%emt 0:05:55]} Be6 {[%emt 0:09:31]} 13. Qc2 {[%emt 0:04:35]} Nf6 {[%emt 0:01:32]} 14. Qb2 {[%emt 0:00:13]} Qd5 {[%emt 0:06:40]} 15. Nb6 {[%emt 0:36:11]} Qxa2 {[%emt 0:00:37]} 16. Qxa2 {[%emt 0:00:11]} Bxa2 {[%emt 0:00:04]} 17. Nxa8 {[%emt 0:00:05]} Rxa8 {[%emt 0:00:06]} 18. Ne5 {[%emt 0:00:17]} Nb4 {[%emt 0:06:47]} 19. d4 {[%emt 0:01:42]} Rd8 {[%emt 0:10:41]} 20. e3 {[%emt 0:02:57]} Nd7 {[%emt 0:06:33]} 21. Nxd7 {[%emt 0:07:11]} Rxd7 {[%emt 0:01:13]} 22. Kd2 {[%emt 0:00:15]} e5 23. Kc3 {[%emt 0:00:05]} exd4+ {[%emt 0:03:55]} 24. exd4 {[%emt 0:00:31]} Be6 {[%emt 0:07:09]} 25. Rcd1 {[%emt 0:02:37]} Nd5+ 26. Bxd5 Bxd5 {[%emt 0:01:12]} 27. Rhe1 {[%emt 0:00:36]} a4 {[%emt 0:00:00]} 28. Kb4 {[%emt 0:01:15]} Bb3 {[%emt 0:01:57]} 29. Rd2 {[%emt 0:03:09]} Kf8 {[%emt 0:00:17]} 30. Ka5 h5 31. h3 {[%emt 0:31:00]} Rd8 {[%emt 0:33:04]} 32. Kb6 {[%emt 0:01:17]} Rd7 {[%emt 0:01:19]} 33. Re3 {[%emt 0:00:17]} Bc4 {[%emt 0:00:15]} 34. Ka5 {[%emt 0:03:28]} Bb3 {[%emt 0:00:39]} 35. Kb4 {[%emt 0:00:23]} Rd8 {[%emt 0:00:33]} 36. f4 {[%emt 0:00:30]} Ra8 {[%emt 0:00:30]} 37. Ka3 {[%emt 0:00:18]} Rd8 {[%emt 0:04:10]} 38. Re5 {[%emt 0:00:13]} Rb8 {[%emt 0:02:59]} 39. f5 {[%emt 0:00:37]} f6 {[%emt 0:02:13]} 40. Re3 {[%emt 0:00:00]} gxf5 {[%emt 0:00:00]} 41. Rf2 {[%emt 0:00:00]} Rd8 {[%emt 0:00:00]} 42. Rxf5 {[%emt 0:00:00]} Rxd4 {[%emt 0:00:00]} 43. Rxf6+ {[%emt 0:00:00]} Kg7 {[%emt 0:00:00]} 44. Rd6 {[%emt 0:00:00]} 1-0

[Event "DMP Ekstraliga 2020"]
[Site "Krakow"]
[Date "2020.08.29"]
[Round "4.30"]
[White "Leks, Maria"]
[Black "Worek, Joanna"]
[Result "0-1"]
[ECO "B67"]
[WhiteElo "2080"]
[BlackElo "2326"]
[Annotator "NA"]
[PlyCount "84"]
[EventDate "2020.08.26"]
[EventType "team-tourn"]
[EventCountry "POL"]
[SourceTitle "playchess.com"]
[Source "ChessBase"]
[SourceQuality "1"]
[WhiteTeam "Dwie Wieze Krakow"]
[BlackTeam "Silesia Raciborz"]
[TimeControl "30/5400+30:1800+30"]

1. e4 {[%emt 0:00:00]} c5 {[%emt 0:00:00]} 2. Nf3 {[%emt 0:00:00]} Nc6 {[%emt 0:00:00]} 3. d4 {[%emt 0:00:00]} cxd4 {[%emt 0:00:00]} 4. Nxd4 {[%emt 0:00:00]} Nf6 {[%emt 0:00:07]} 5. Nc3 {[%emt 0:00:00]} d6 {[%emt 0:00:21]} 6. Bg5 {[%emt 0:00:07]} e6 {[%emt 0:00:44]} 7. Qd2 {[%emt 0:00:19]} a6 {[%emt 0:00:17]} 8. O-O-O {[%emt 0:00:21]} Bd7 {[%emt 0:00:37]} 9. f3 {[%emt 0:00:26]} Nxd4 {[%emt 0:00:22]} 10. Qxd4 {[%emt 0:00:05]} Be7 {[%emt 0:00:10] B67: Sicilian: Richter-Rauzer: 7...a6 8 0-0-0 Bd7, lines without 9 f4 Be7.} 11. Qd2 {[%emt 0:01:25]} b5 {[%emt 0:01:02]} 12. h4 {[%emt 0:00:58]} h6 {[%emt 0:05:03]} 13. Be3 {[%emt 0:03:42]} h5 {[%emt 0:02:02]} 14. Bg5 {[%emt 0:09:34]} Qc7 {[%emt 0:02:59] [#]} 15. Kb1 $146 {[%emt 0:02:46]} ({Predecessor:} 15. Ne2 Rb8 16. Kb1 a5 17. Bf4 Rb6 18. Be3 Rb7 19. Bf4 Rb6 20. Be3 Ra6 21. Nc3 {1-0 (94) Shome,S (2263)-G,A (2456) Budapest 2019}) 15... Rb8 {[%emt 0:08:52]} 16. Bd3 {[%emt 0:11:21]} b4 {[%emt 0:03:04]} 17. Ne2 {[%emt 0:01:27]} a5 {[%emt 0:00:35]} 18. f4 {[%emt 0:02:19]} a4 {[%emt 0:06:40]} 19. e5 {[%emt 0:06:48]} Ng4 {[%emt 0:10:27]} 20. Bxe7 $11 {[%emt 0:15:13]} Kxe7 {[%emt 0:00:07]} 21. exd6+ {[%emt 0:01:12]} Qxd6 {[%emt 0:00:21]} 22. Ng3 {[%emt 0:01:25]} a3 {[%emt 0:10:07]} 23. Rhe1 {[%emt 0:17:18]} g6 {[%emt 0:18:47]} 24. Bc4 {[%emt 0:08:43]} Qxd2 {[%emt 0:04:56]} 25. Rxd2 {[%emt 0:00:04]} Bb5 {[%emt 0:06:14]} 26. Bxb5 {[%emt 0:09:08]} Rxb5 {[%emt 0:00:02]} 27. Ne4 {[%emt 0:05:10]} Ra8 {[%emt 0:01:45]} 28. b3 {[%emt 0:01:06]} Ra7 {[%emt 0:06:13]} 29. Rd4 {[%emt 0:00:50]} Rc7 {[%emt 0:00:31]} 30. g3 {[%emt 0:00:54]} Rb6 {[%emt 0:01:59]} 31. Re2 {[%emt 0:31:46]} Nh6 {[%emt 0:32:39]} 32. c4 {[%emt 0:00:47]} bxc3 {[%emt 0:00:43]} 33. Kc2 {[%emt 0:00:06]} Nf5 {[%emt 0:00:53]} 34. Rd3 {[%emt 0:00:23]} Rb4 {[%emt 0:02:45]} 35. Kc1 {[%emt 0:00:05]} Nd4 {[%emt 0:00:40]} 36. Re1 {[%emt 0:01:36]} Nxb3+ {[%emt 0:00:25]} 37. axb3 {[%emt 0:00:31]} a2 {[%emt 0:00:05]} 38. Kc2 {[%emt 0:00:05]} Rxe4 {[%emt 0:00:05]} 39. Ra1 {[%emt 0:00:27]} Re2+ {[%emt 0:00:06]} 40. Kc1 {[%emt 0:00:00]} Rd7 {[%emt 0:00:00]} 41. Rd1 {[%emt 0:00:00]} Rxd1+ {[%emt 0:00:00]} 42. Kxd1 {[%emt 0:00:00]} Rg2 {[%emt 0:00:00]} 0-1

[Event "DMP Ekstraliga 2020"]
[Site "Krakow"]
[Date "2020.08.30"]
[Round "5.2"]
[White "Piorun, Kacper"]
[Black "Leniart, Arkadiusz"]
[Result "0-1"]
[ECO "C24"]
[WhiteElo "2596"]
[BlackElo "2482"]
[Annotator "ChessBase"]
[PlyCount "98"]
[EventDate "2020.08.26"]
[EventType "team-tourn"]
[EventCountry "POL"]
[SourceTitle "playchess.com"]
[Source "ChessBase"]
[SourceQuality "1"]
[WhiteTeam "Stilon Gorzow"]
[BlackTeam "Dwie Wieze Krakow"]
[TimeControl "30/5400+30:1800+30"]

1. e4 {[%emt 0:00:00]} e5 {[%emt 0:00:00]} 2. Bc4 {[%emt 0:00:00]} Nf6 {[%emt 0:00:00]} 3. d3 {[%emt 0:00:00]} c6 {[%emt 0:04:13]} 4. Nf3 {[%emt 0:00:00]} Be7 {[%emt 0:06:40]} 5. Bb3 {[%emt 0:09:37]} O-O {[%emt 0:01:53]} 6. O-O {[%emt 0:00:16]} d6 {[%emt 0:02:44]} 7. Re1 {[%emt 0:02:11]} Nbd7 {[%emt 0:02:08]} 8. c3 {[%emt 0:03:10]} Qc7 {[%emt 0:04:03]} 9. d4 {[%emt 0:06:19]} b6 {[%emt 0:07:54]} 10. Nbd2 {[%emt 0:01:03]} Bb7 {[%emt 0:00:31]} 11. Nf1 {[%emt 0:05:06]} c5 {[%emt 0:08:14]} 12. Ng3 {[%emt 0:01:27]} Rfe8 {[%emt 0:05:50]} 13. dxe5 {[%emt 0:09:31]} Nxe5 {[%emt 0:07:11]} 14. Nxe5 {[%emt 0:05:59]} dxe5 {[%emt 0:00:17]} 15. Nf5 {[%emt 0:00:12]} Bf8 {[%emt 0:08:30]} 16. Qf3 {[%emt 0:06:01]} c4 {[%emt 0:02:17]} 17. Bc2 {[%emt 0:00:09]} g6 {[%emt 0:04:19]} 18. Bg5 {[%emt 0:08:31]} Nd7 {[%emt 0:05:36]} 19. Nh6+ {[%emt 0:13:11]} Bxh6 {[%emt 0:00:15]} 20. Bxh6 {[%emt 0:00:02]} f5 {[%emt 0:06:26]} 21. Qe2 {[%emt 0:14:20]} f4 {[%emt 0:02:57]} 22. Ba4 {[%emt 0:00:33]} Ba6 {[%emt 0:12:58]} 23. b4 {[%emt 0:03:36]} b5 {[%emt 0:02:14]} 24. Bc2 {[%emt 0:00:02]} Bb7 {[%emt 0:00:13]} 25. a4 {[%emt 0:00:52]} a6 {[%emt 0:00:08]} 26. g3 {[%emt 0:03:59]} Nf8 {[%emt 0:01:20]} 27. gxf4 {[%emt 0:03:25]} exf4 {[%emt 0:00:45]} 28. Qg4 {[%emt 0:00:05]} Ne6 {[%emt 0:00:58]} 29. axb5 {[%emt 0:01:51]} axb5 {[%emt 0:00:05]} 30. Rxa8 {[%emt 0:00:09]} Bxa8 {[%emt 0:00:03]} 31. h4 {[%emt 0:30:27]} Qe5 {[%emt 0:30:40]} 32. Qf3 {[%emt 0:02:29]} Rd8 {[%emt 0:01:04]} 33. Ra1 {[%emt 0:00:24]} Bb7 {[%emt 0:00:07]} 34. Ra7 {[%emt 0:00:42]} Rd7 {[%emt 0:00:04]} 35. Qh3 {[%emt 0:00:59]} Kf7 {[%emt 0:01:10]} 36. h5 {[%emt 0:00:12]} Bc6 {[%emt 0:01:27]} 37. hxg6+ {[%emt 0:00:44]} hxg6 {[%emt 0:00:05]} 38. Ra6 {[%emt 0:00:47]} Rd6 {[%emt 0:01:47]} 39. Ra7+ {[%emt 0:00:15]} Rd7 {[%emt 0:00:04]} 40. Ra6 {[%emt 0:00:00]} Rd6 {[%emt 0:00:00]} 41. Ra7+ {[%emt 0:00:00]} Bd7 {[%emt 0:00:00]} 42. Qf3 {[%emt 0:00:00]} Rd2 {[%emt 0:00:00]} 43. Bd1 {[%emt 0:00:00]} Rd3 {[%emt 0:00:00]} 44. Qg4 {[%emt 0:00:00]} Qxc3 {[%emt 0:00:00]} 45. Be2 {[%emt 0:00:00]} Qd4 {[%emt 0:00:00]} 46. Bxd3 {[%emt 0:00:00]} Qxa7 {[%emt 0:00:00]} 47. Bf1 {[%emt 0:00:00]} Qd4 {[%emt 0:00:00]} 48. Bxf4 {[%emt 0:00:30]} Qxe4 {[%emt 0:00:00]} 49. Qd1 {[%emt 0:00:05]} Bc6 {[%emt 0:00:00]} 0-1